{"text_format":"1","workbook":"xlsx","n_sheets":2,"sheets":["Main","Data"],"not_rendered":{"charts":0,"images":2,"macros":1,"external_links":0,"defined_names":0,"comments":0,"pivot_tables":0},"unopened":[],"bounds":{"document_bytes":16777216,"sheet_cells":100000,"rows_first":2000,"rows_last":500,"rows_between":2000,"halvings":0,"cell_chars":16384,"cell_head_chars":4096},"cells_cut":0,"cells_raw":0,"read":"whole","date_system":"1900"}

{"sheet":"Main","index":0,"n_rows":35,"n_cols":8,"rows_kept":35,"cut":false,"hidden":false,"merged":[]}
[]
[null,null,null,null,null,null,"الاسم","الفرع"]
[null,null,"رقم الموظف",6,null,1,"ميدو","BB القاضي"]
[null,null,"اسم الموظف",{"$f":"VLOOKUP($D$3,$F$3:$H$35,2,0)","v":"سلامة"},null,2,"القرشي","BB القاضي"]
[null,null,"الفرع",{"$f":"VLOOKUP($D$3,$F$3:$H$35,3,0)","v":"bb المتوكل"},null,3,"احمد حجازي","BB ماهر"]
[null,null,"التاريخ","2020-05-12",null,4,"عمر غانم","bb ماهر"]
[null,null,"الحضور","08:15:00",null,5,"اسلام النيني","bb ماهر"]
[null,null,null,null,null,6,"سلامة","bb المتوكل"]
[null,null,null,null,null,7,"عبدو الغرابلي","bb المتوكل"]
[null,null,null,null,null,8,"شريف القاضي","bb المتوكل"]
[null,null,null,null,null,9,"عبدالله البحيري","BB كفر الشيخ"]
[null,null,null,null,null,10,"الزاهي","bb كفر الشيخ"]
[null,null,null,null,null,11,"احمد رجب كفرالشيخ","bb كفر الشيخ"]
[null,null,null,null,null,12,"عمر محمد","bb كفر الشيخ"]
[null,null,null,null,null,13,"الاخناوي","just ماهر"]
[null,null,null,null,null,14,"رامي","just ماهر"]
[null,null,null,null,null,15,"مصطفي القاضي","Ledro ماهر"]
[null,null,null,null,null,16,"السيد","Ledro ماهر"]
[null,null,null,null,null,17,"محمد خالد","Ledro ماهر"]
[null,null,null,null,null,18,"معوض","BB كفر الزيات "]
[null,null,null,null,null,19,"النبوي","BB كفر الزيات "]
[null,null,null,null,null,20,"اشرف","Just الممر"]
[null,null,null,null,null,21,"الخرصاوي","Just الممر"]
[null,null,null,null,null,22,"احمد البحيري","Just الممر"]
[null,null,null,null,null,23,"شريف نوار","Just الممر"]
[null,null,null,null,null,24,"الاكس","Ledro سعد الدين"]
[null,null,null,null,null,25,"صادق","Ledro سعد الدين"]
[null,null,null,null,null,26,"احمد رجب","Ledro سعد الدين"]
[null,null,null,null,null,27,"محمود صابر","Ledro كفر الشيخ"]
[null,null,null,null,null,28,"محمود سامي","Ledro كفر الشيخ"]
[null,null,null,null,null,29,"سليمان","Ledro كفر الشيخ"]
[null,null,null,null,null,30,"كريم","Ledro كفر الشيخ"]
[null,null,null,null,null,31,"مهند","Renzo كفر الشيخ"]
[null,null,null,null,null,32,"الشراكي","Renzo كفر الشيخ"]
[null,null,null,null,null,33,"المغربي","Renzo كفر الشيخ"]

{"sheet":"Data","index":1,"n_rows":34,"n_cols":9,"rows_kept":34,"cut":false,"hidden":false,"merged":[]}
["#","Name","Date","Time","Delay",null,null,null,"بدء الدّوام"]
[1,"ميدو","2020-12-05","08:30:00",{"$f":"IF(OR(D2<=$I$2,D2=\"\"),\"\",D2-$I$2)","v":"00:30:00"},null,null,null,"08:00:00"]
[2,"القرشي",null,null,{"$f":"IF(OR(D3<=$I$2,D3=\"\"),\"\",D3-$I$2)","v":""}]
[3,"احمد حجازي","2020-12-05","09:30:00","01:30:00"]
[4,"عمر غانم",null,null,""]
[5,"اسلام النيني","2020-12-05","08:15:00","00:15:00"]
[6,"سلامة","2020-12-05","08:15:00","00:15:00"]
[7,"عبدو الغرابلي",null,null,""]
[8,"شريف القاضي",null,null,""]
[9,"عبدالله البحيري","2020-12-05","09:00:00","01:00:00"]
[10,"الزاهي",null,null,""]
[11,"احمد رجب كفرالشيخ",null,null,""]
[12,"عمر محمد",null,null,""]
[13,"الاخناوي",null,null,""]
[14,"رامي",null,null,""]
[15,"مصطفي القاضي",null,null,""]
[16,"السيد",null,null,""]
[17,"محمد خالد",null,null,""]
[18,"معوض",null,null,""]
[19,"النبوي",null,null,""]
[20,"اشرف",null,null,""]
[21,"الخرصاوي",null,null,""]
[22,"احمد البحيري",null,null,""]
[23,"شريف نوار",null,null,""]
[24,"الاكس",null,null,""]
[25,"صادق",null,null,""]
[26,"احمد رجب",null,null,""]
[27,"محمود صابر",null,null,""]
[28,"محمود سامي",null,null,""]
[29,"سليمان",null,null,""]
[30,"كريم",null,null,""]
[31,"مهند",null,null,""]
[32,"الشراكي",null,null,""]
[33,"المغربي",null,null,""]